fUST/lending_fUST_20251018
["ID","MTS","AMOUNT","RATE_DAILY","PERIOD"]
[391747723,1760770517806,1389.17969993,0.00021964,2]
[391747724,1760770520140,2818.07,0.00019178,2]
[391747725,1760770520174,1781.94,0.00019178,2]
[391747726,1760770541444,320.61,0.00034112,60]
[391747727,1760770562975,150.0,0.00019516,2]
[391747728,1760770563487,242.37,0.00020445,2]
[391747729,1760770563998,363.56,0.00021374,2]
[391747730,1760770564402,484.75,0.00022304,2]
[391747731,1760770564811,605.93,0.00023233,2]
[391747732,1760770566579,-150.66834916,0.00023986,2]
[391747733,1760770573807,-552.07168618,0.0002405,2]
[391747734,1760770578071,636.80651151,0.0002395,2]
[391747735,1760770581576,200.0,0.00034112,120]
[391747736,1760770598105,320.06547201,0.00023748,2]
[391747737,1760770615542,5000.0,0.00023892,2]
[391747743,1760770638410,4679.94452799,0.00023892,2]
[391747744,1760770638445,320.05547201,0.00023892,2]
[391747745,1760770644379,150.0,0.00019498,2]
[391747746,1760770644809,195.37,0.00020427,2]
[391747747,1760770645342,293.05,0.00021355,2]
[391747748,1760770645869,390.74,0.00022284,2]
[391747749,1760770646710,488.42,0.00023212,2]
[391747750,1760770661495,-168.0,0.00023929,2]
[391747751,1760770661821,5000.0,0.00023892,2]
[391747752,1760770686095,4664.01,0.00023929,2]
[391747753,1760770686127,335.99,0.00023929,2]
[391747754,1760770709267,5000.0,0.00023929,2]
[391747755,1760770717440,4626.26646537,0.00023929,2]
[391747756,1760770725986,37.75353463,0.00019296,2]
[391747757,1760770726021,112.24646537,0.00019296,2]
[391747758,1760770726649,156.74,0.00020215,2]
[391747759,1760770726984,235.11,0.00021134,2]
[391747760,1760770727400,313.48,0.00022053,2]
[391747761,1760770727924,391.85,0.00022972,2]
[391747762,1760770728304,470.22,0.00023891,2]
[391747763,1760770730078,8320.36353463,0.00023929,2]
[391747764,1760770730108,1679.63646537,0.00023929,2]
[391747765,1760770734230,5000.0,0.00023929,2]
[391747766,1760770749915,5000.0,0.00023929,2]
[391747767,1760770758504,5000.0,0.00023892,2]
[391747768,1760770758899,1066.52012526,0.00021963,2]
[391747769,1760770759602,1901.29520707,0.00021977,2]
[391747770,1760770767498,2032.19466767,0.00023892,2]
[391747771,1760770767527,2967.80533233,0.00023892,2]
[391747772,1760770770641,7032.20466767,0.00023892,2]
[391747773,1760770773735,-601.40338765,0.00023892,2]
[391747774,1760770776875,-286.10909762,0.00023892,2]
[391747775,1760770780828,-158.64311961,0.00023892,2]
[391747776,1760770782838,5000.0,0.00023875,2]
[391747777,1760770783053,-177.65860303,0.00023892,2]
[391747778,1760770785296,-314.72928883,0.00023892,2]
[391747779,1760770785428,-1429.25183559,0.00023892,2]
[391747780,1760770786801,-209.62776021,0.000239,2]
[391747781,1760770800269,-90.37223979,0.000239,2]
[391747782,1760770804018,12889.4101318,0.00034112,60]
[391747783,1760770804090,326.76988924,0.000239,2]
[391747784,1760770805501,150.0,0.00019329,2]
[391747785,1760770806058,150.0,0.0002025,2]
[391747786,1760770806541,5000.0,0.000239,2]
[391747787,1760770806583,207.72,0.0002117,2]
[391747788,1760770807117,276.96,0.00022091,2]
[391747789,1760770807526,346.2,0.00023011,2]
[391747790,1760770812745,3361.61563118,0.000239,2]
[391747791,1760770812775,6638.38436882,0.000239,2]
[391747792,1760770815045,3361.62563118,0.000239,2]
[391747793,1760770815083,1638.37436882,0.000239,2]
[391747794,1760770815379,-415.44,0.00023931,2]
[391747795,1760770827719,300.0,0.000239,2]
[391747796,1760770828865,8869.13,0.00023931,2]
[391747797,1760770828896,1130.87,0.00023931,2]
[391747798,1760770832551,5000.0,0.00023931,2]
[391747799,1760770841178,10000.0,0.000236,2]
[391747800,1760770848728,-300.0,0.000239,2]
[391747801,1760770849302,-257.84607018,0.00023905,2]
[391747802,1760770851951,300.0,0.000239,2]
[391747803,1760770855945,9100.01,0.000239,2]
[391747804,1760770855978,899.99,0.000239,2]
[391747805,1760770856656,5000.0,0.000239,2]
[391747806,1760770858375,-304.30239813,0.00023905,2]
[391747807,1760770861716,-162.250861,0.00023905,2]
[391747808,1760770863644,-3104.29091776,0.00023905,2]
[391747809,1760770878565,3791.42816448,0.00023905,2]
[391747810,1760770878595,4246.57183552,0.00023905,2]
[391747811,1760770879681,5000.0,0.00023905,2]
[391747812,1760770881251,200.0,0.0003411,120]
[391747813,1760770886067,150.0,0.00019277,2]
[391747814,1760770886437,251.43,0.00020195,2]
[391747815,1760770886864,377.14,0.00021113,2]
[391747816,1760770887301,502.86,0.00022031,2]
[391747817,1760770887726,628.57,0.00022949,2]
[391747818,1760770888151,311.60492847,0.00023424,2]
[391747819,1760770896989,-754.29,0.00023867,2]
[391747820,1760770899259,666.0,0.00023159,2]
[391747821,1760770913917,-5000.0,0.00023905,2]
[391747822,1760770927968,0.01,0.00023862,2]
[391747823,1760770928001,823.48043344,0.00023862,2]
[391747824,1760770939872,5901.69969993,0.00021977,2]
[391747825,1760770950596,155.0,9.3e-07,2]
[391747826,1760770967882,150.0,0.00019326,2]
[391747827,1760770968386,241.12,0.00020247,2]
[391747828,1760770968785,361.68,0.00021167,2]
[391747829,1760770969397,482.24,0.00022087,2]
[391747830,1760770969931,602.8,0.00023008,2]
[391747831,1760770998807,2105.47030007,0.00021977,2]
[391747832,1760770998838,6256.089912,0.00021977,2]
[391747833,1760770999693,-723.36,0.00023928,2]
[391747835,1760771015517,-160.0,0.00024146,2]
[391747836,1760771015540,-31.11947102,0.00024148,2]
[391747837,1760771034159,345.82493515,0.00023424,2]
[391747839,1760771051271,150.0,0.00019469,2]
[391747840,1760771051710,175.92,0.00020396,2]
[391747841,1760771052255,263.89,0.00021323,2]
[391747842,1760771052745,351.85,0.0002225,2]
[391747843,1760771054154,439.81,0.00023178,2]
[391747844,1760771069059,-168.0,0.00023984,2]
[391747845,1760771070822,-300.0,0.00024105,2]
[391747846,1760771120432,-5000.0,0.00023849,2]
[391747847,1760771120864,-174.06211973,0.00023849,2]
[391747848,1760771126096,5000.0,0.00023849,2]
[391747849,1760771132703,150.0,0.00019393,2]
[391747850,1760771133119,150.0,0.00020316,2]
[391747851,1760771133543,199.68,0.0002124,2]
[391747852,1760771133957,266.25,0.00022163,2]
[391747853,1760771134324,1171.30975293,0.00023849,2]
[391747854,1760771134380,332.81,0.00023087,2]
[391747855,1760771153771,-5000.0,0.0002377,2]
[391747856,1760771168789,-399.37,0.0002401,2]
[391747857,1760771174464,5000.0,0.0002401,2]
[391747858,1760771181669,200.0,0.0003411,120]
[391747859,1760771183942,-779.74503047,0.0002409,2]
[391747860,1760771183989,-300.0,0.00024148,2]
[391747861,1760771184025,-500.0,0.00024149,2]
[391747862,1760771184062,-500.0,0.00024149,2]
[391747863,1760771184099,-188.70187538,0.00024149,2]
[391747864,1760771184139,-500.0,0.00024149,2]
[391747865,1760771184195,-500.0,0.00024149,2]
[391747866,1760771184235,-510.38470993,0.00024149,2]
[391747867,1760771184271,-167.45793341,0.00024149,2]
[391747868,1760771184308,-500.0,0.00024149,2]
[391747869,1760771184347,-500.0,0.00024149,2]
[391747870,1760771184748,-500.0,0.00024149,2]
[391747871,1760771184783,-500.0,0.00024149,2]
[391747872,1760771184820,-500.0,0.00024149,2]
[391747873,1760771184854,-296.58236312,0.00024149,2]
[391747874,1760771184893,-500.0,0.00024149,2]
[391747875,1760771184931,-500.0,0.00024149,2]
[391747876,1760771184967,-500.0,0.00024149,2]
[391747877,1760771185004,-500.0,0.00024149,2]
[391747878,1760771185041,-500.0,0.00024149,2]
[391747879,1760771185079,-500.0,0.00024149,2]
[391747880,1760771185251,-500.0,0.00024149,2]
[391747881,1760771185290,-360.72216418,0.00024149,2]
[391747882,1760771185328,-500.0,0.00024149,2]
[391747883,1760771185368,-500.0,0.00024149,2]
[391747884,1760771185410,-500.0,0.00024149,2]
[391747885,1760771185450,-500.0,0.00024149,2]
[391747886,1760771185486,-500.0,0.00024149,2]
[391747887,1760771185522,-500.0,0.00024149,2]
[391747888,1760771185559,-500.0,0.00024149,2]
[391747889,1760771185597,-500.0,0.00024149,2]
[391747890,1760771185924,-500.0,0.00024149,2]
[391747891,1760771185965,-500.0,0.00024149,2]
[391747892,1760771186006,-500.0,0.00024149,2]
[391747893,1760771189820,-500.0,0.00023928,8]
[391747894,1760771192867,-500.0,0.00023928,8]
[391747895,1760771193110,-500.0,0.00023928,8]
[391747897,1760771195879,-500.0,0.00023928,8]
[391747898,1760771198896,-5000.0,0.00023909,2]
[391747899,1760771205271,-1587.2334348,0.0002415,2]
[391747900,1760771205321,-10000.01,0.0002415,2]
[391747901,1760771208342,-10000.01,0.0002415,2]
[391747902,1760771210991,-150.0,0.00019387,2]
[391747903,1760771211029,-734.84152298,0.0002415,2]
[391747904,1760771211069,-168.0,0.0002419,2]
[391747905,1760771211106,-800.0,0.0002419,2]
[391747906,1760771211142,-184.93285633,0.000242,2]
[391747907,1760771211179,-184.93285631,0.000242,2]
[391747908,1760771211221,-184.93285631,0.000242,2]
[391747909,1760771211260,-289.48923361,0.000242,2]
[391747910,1760771211298,-150.0,0.00024249,2]
[391747911,1760771211337,-325.20631253,0.00024272,5]
[391747912,1760771211372,-896.45707677,0.00024372,2]
[391747913,1760771211694,-150.0,0.0002031,2]
[391747914,1760771211705,-1712.42457032,0.000244,5]
[391747915,1760771214032,-150.0,0.00021233,2]
[391747916,1760771214079,-189.98,0.00022156,2]
[391747917,1760771214126,-237.47,0.00023079,2]
[391747918,1760771214173,-284.97,0.00024002,2]
[391747919,1760771214219,-1287.57542968,0.000244,5]
[391747920,1760771214265,-330.0,0.00024421,3]
[391747921,1760771214307,-166.0,0.00024421,3]
[391747922,1760771214349,-330.0,0.00024421,3]
[391747923,1760771214390,-166.0,0.00024421,3]
[391747924,1760771214431,-163.0,0.00024421,3]
[391747925,1760771214473,-163.0,0.00024421,3]
[391747926,1760771214514,-313.29603422,0.00024421,3]
[391747927,1760771214556,-165.0,0.00024421,3]
[391747928,1760771214600,-165.0,0.00024421,3]
[391747929,1760771214639,-165.0,0.00024421,3]
[391747930,1760771214679,-184.28581157,0.00024421,3]
[391747931,1760771214720,-165.0,0.00024421,3]
[391747932,1760771214759,-166.71687782,0.00024421,3]
[391747933,1760771214803,-166.0,0.00024421,3]
[391747934,1760771215600,-83.42169342,0.00024421,3]
[391747935,1760771218939,-82.57830658,0.00024421,3]
[391747936,1760771221184,5000.0,0.00024177,2]
[391747937,1760771226206,1349.9445999,0.000241,2]
[391747938,1760771232139,-200.17143769,0.00024449,2]
[391747939,1760771244199,5000.0,0.00024449,2]
[391747940,1760771256023,800.0,0.00024419,2]
[391747941,1760771259811,168.0,0.00024114,2]
[391747942,1760771264785,168.0,0.00024082,2]
[391747943,1760771268449,5000.0,0.0002445,2]
[391747944,1760771282334,417.15472785,0.00024449,2]
[391747945,1760771285831,3446.85527215,0.00024,2]
[391747946,1760771285862,10000.01,0.00024,2]
[391747947,1760771285895,10000.01,0.00024,2]
[391747948,1760771285928,7067.12472785,0.00024,2]
[391747949,1760771285971,150.0,0.0001961,2]
[391747950,1760771286638,150.0,0.00020543,2]
[391747951,1760771287079,150.0,0.00021477,2]
[391747952,1760771287517,150.0,0.00022411,2]
[391747953,1760771287939,163.5,0.00023345,2]
[391747954,1760771288492,196.2,0.00024279,2]
[391747955,1760771292210,1973.18527215,0.0002445,2]
[391747956,1760771292244,3026.81472785,0.0002445,2]
[391747957,1760771298244,5837.3430817,0.00024,2]
[391747958,1760771315218,906.0,0.0003411,60]
[391747959,1760771315395,4162.6669183,0.0002445,2]
[391747960,1760771315425,837.3330817,0.0002445,2]
[391747961,1760771334879,3713.36738781,0.00024449,2]
[391747962,1760771338783,5000.0,0.0002445,2]
[391747963,1760771355434,449.30953049,0.00024101,2]
[391747964,1760771355467,10000.01,0.00024101,2]
[391747965,1760771355499,10000.01,0.00024101,2]
[391747966,1760771355531,10000.01,0.00024101,2]
[391747967,1760771355569,10000.01,0.00024101,2]
[391747968,1760771355603,10000.01,0.00024101,2]
[391747969,1760771355638,10000.01,0.00024101,2]
[391747970,1760771355671,10000.01,0.00024101,2]
[391747971,1760771355703,10000.01,0.00024101,2]
[391747972,1760771355737,2131.12912481,0.00024101,2]
[391747973,1760771360828,150.0,0.00019575,2]
[391747974,1760771361235,150.0,0.00020507,2]
[391747975,1760771361671,150.0,0.00021439,2]
[391747976,1760771362201,150.0,0.00022371,2]
[391747977,1760771362501,5000.0,0.0002445,2]
[391747978,1760771362622,150.0,0.00023303,2]
[391747979,1760771363184,150.0,0.00024236,2]
[391747980,1760771375518,800.0,0.00024408,2]
[391747981,1760771375577,800.0,0.00024244,2]
[391747982,1760771375631,800.0,0.00024227,2]
[391747983,1760771375747,800.0,0.0002441,2]
[391747984,1760771385777,5000.0,0.0002445,2]
[391747985,1760771409637,1800.01,0.0002445,2]
[391747986,1760771409678,3199.99,0.0002445,2]
[391747987,1760771412244,168.723552,0.00011778,2]
[391747988,1760771412447,168.723552,0.00023556,2]
[391747989,1760771431313,403.02458,0.0003411,60]
[391748000,1760771431693,403.02458,0.0003411,60]
[391748021,1760771432075,403.02458,0.0003411,60]
[391748033,1760771432194,-757.61051086,0.00024457,2]
[391748039,1760771432237,-1628.82679237,0.00024457,2]
[391748041,1760771432248,-173.56135906,0.00024473,2]
[391748043,1760771432262,-197.4128498,0.000245,2]
[391748046,1760771432276,-800.0,0.0002452,2]
[391748048,1760771432288,-500.0,0.00024556,2]
[391748050,1760771432299,-255.17581813,0.00024556,2]
[391748052,1760771432310,-500.0,0.00024556,2]
[391748054,1760771432323,-206.74690713,0.00024556,2]
[391748057,1760771432335,-300.0,0.00024556,2]
[391748059,1760771432347,-160.0,0.00024556,2]
[391748061,1760771432357,-189506.27274701,0.00024557,2]
[391748077,1760771432576,403.02458,0.0003411,60]
[391748100,1760771433214,5000.0,0.0002445,2]
[391748101,1760771434345,403.02458,0.0003411,60]
[391748102,1760771435177,150.0,0.00019778,2]
[391748103,1760771435587,150.0,0.0002072,2]
[391748104,1760771436228,150.0,0.00021662,2]
[391748105,1760771436928,150.0,0.00022604,2]
[391748134,1760771438066,-500.0,0.00024557,2]
[391748198,1760771440533,-3e-08,0.00024557,2]
[391748418,1760771445807,-151.0,0.000235,7]
[391748426,1760771446196,151.0,0.000221,9]
[391748427,1760771469807,168.0,0.00024086,2]
[391748428,1760771481403,200.0,0.0003411,120]
[391748429,1760771502427,150.0,0.00019806,2]
[391748430,1760771503000,150.0,0.00020749,2]
[391748431,1760771503403,150.0,0.00021692,2]
[391748432,1760771503835,150.0,0.00022635,2]
[391748433,1760771504282,150.0,0.00023578,2]
[391748434,1760771574712,150.0,0.0001978,2]
[391748435,1760771575142,150.0,0.00020721,2]
[391748436,1760771575585,150.0,0.00021663,2]
[391748437,1760771576039,150.0,0.00022605,2]
[391748438,1760771576550,150.0,0.00023547,2]
[391748439,1760771624407,999.89,0.00024149,2]
[391748440,1760771652824,5000.0,0.00024334,2]
[391748441,1760771676272,2500.12,0.00024334,2]
[391748442,1760771676309,2499.88,0.00024334,2]
[391748443,1760771678969,823.49043345,0.00024131,2]
[391748444,1760771680828,168.0,0.00023938,2]
[391748445,1760771686467,168.0,0.00023754,2]
[391748446,1760771700284,5000.0,0.00024334,2]
[391748447,1760771724164,1340.63956655,0.00024334,2]
[391748448,1760771724201,3659.36043345,0.00024334,2]
[391748449,1760771739597,-467.0,0.00024334,2]
[391748450,1760771739639,-999.89,0.00024371,2]
[391748451,1760771742940,176.30866702,0.00024334,2]
[391748452,1760771747615,5000.0,0.00024371,2]
[391748453,1760771754858,-373.95980069,0.000244,5]
[391748454,1760771769806,-800.0,0.0002442,2]
[391748455,1760771771464,5000.0,0.000244,2]
[391748456,1760771781728,2849.5313607,0.00023555,2]
[391748457,1760771781910,200.0,0.00034105,120]
[391748458,1760771795273,178.75315565,0.00024142,2]
[391748459,1760771843108,527.69,0.00024,14]
[391748460,1760771890014,168.0,0.00024066,2]
[391748461,1760771900648,150.0,0.00019114,2]
[391748462,1760771901069,150.0,0.00020024,2]
[391748463,1760771901577,150.0,0.00020934,2]
[391748464,1760771902037,150.0,0.00021844,2]
[391748465,1760771913577,2858.7828071,0.00023725,2]
[391748466,1760771926389,200.0,0.00022,3]
[391748467,1760771966141,417.15472785,0.00024303,2]
[391748469,1760772081842,200.0,0.00034109,120]
[391748470,1760772098851,314.0319441,0.00023424,2]
[391748471,1760772111625,5423.01146205,0.00024303,2]
[391748473,1760772243485,187.0290589,0.00023424,2]
[391748474,1760772243516,204.58451017,0.00023424,2]
[391748475,1760772252322,250.0,0.00024,3]
[391748476,1760772268954,200.0,0.00024,3]
[391748477,1760772302225,250.0,0.00024,3]
[391748484,1760772312082,823.77908852,0.00024303,2]
[391748485,1760772314700,200.0,0.00024,3]
[391748486,1760772324322,250.0,0.00024049,2]
[391748488,1760772381176,200.0,0.00034109,120]
[391748489,1760772406288,298.7149072,0.00024119,2]
[391748490,1760772433639,287.03432561,0.00024151,2]
[391748491,1760772460531,7235.8971685,0.000199,2]
[391748492,1760772460564,10000.01,0.000199,2]
[391748493,1760772460596,10000.01,0.000199,2]
[391748494,1760772460630,10000.01,0.000199,2]
[391748495,1760772460662,1364.44144352,0.000199,2]
[391748496,1760772467207,253.52424848,0.000209,2]
[391748497,1760772467427,8382.044308,0.00018,2]
[391748498,1760772467462,10000.01,0.00018,2]
[391748499,1760772467494,10000.01,0.00018,2]
[391748500,1760772467528,10000.01,0.00018,2]
[391748501,1760772467558,10000.01,0.00018,2]
[391748502,1760772467588,5449.16159212,0.00018,2]
[391748503,1760772469368,-168.0,0.00024303,2]
[391748504,1760772469400,-12.55350039,0.00024303,2]
[391748505,1760772473462,-160.22899329,0.00024303,2]
[391748506,1760772473486,-1.67633903,0.00024313,2]
[391748507,1760772475027,-219.23583969,0.00024313,2]
[391748508,1760772475742,168.0,0.00023999,2]
[391748509,1760772477076,-200.23429216,0.00024313,2]
[391748510,1760772486697,-282.39645235,0.00024313,2]
[391748511,1760772501805,-800.0,0.00024318,2]
[391748512,1760772508461,3489.51,0.00024313,2]
[391748513,1760772512864,4910.5,0.00015,2]
[391748514,1760772512892,4510.61461795,0.00015,2]
[391748517,1760772516321,1424.00685536,0.0002,120]
[391748518,1760772517717,10000.01,0.0002,2]
[391748519,1760772518933,2523.8017459,0.0002,2]
[391748520,1760772520267,386.55457407,0.00023,2]
[391748522,1760772521998,7089.65368003,0.00024142,2]
[391748523,1760772522028,10000.01,0.00024142,2]
[391748524,1760772522057,10000.01,0.00024142,2]
[391748525,1760772522085,10000.01,0.00024142,2]
[391748526,1760772522114,10000.01,0.00024142,2]
[391748527,1760772522143,10000.01,0.00024142,2]
[391748528,1760772522171,10000.01,0.00024142,2]
[391748529,1760772522199,10000.01,0.00024142,2]
[391748530,1760772522230,10000.01,0.00024142,2]
[391748531,1760772522259,10000.01,0.00024142,2]
[391748532,1760772522288,10000.01,0.00024142,2]
[391748533,1760772522317,10000.01,0.00024142,2]
[391748534,1760772522347,10000.01,0.00024142,2]
[391748535,1760772531915,-200.0,0.00024,3]
[391748536,1760772534943,-3907.65395744,0.00023901,2]
[391748537,1760772544194,-300.0,0.00024141,2]
[391748538,1760772556294,-150.0,0.00019726,2]
[391748539,1760772556339,-150.0,0.00020665,2]
[391748540,1760772556383,-150.0,0.00021604,2]
[391748541,1760772556423,-150.0,0.00022544,2]
[391748542,1760772556465,-150.0,0.00023483,2]
[391748543,1760772556883,-1581.98124714,0.00024142,2]
[391748544,1760772556904,-10000.01,0.00024142,2]
[391748545,1760772557025,-10000.01,0.00024142,2]
[391748546,1760772557053,-10000.01,0.00024142,2]
[391748547,1760772559344,-10000.01,0.00024142,2]
[391748548,1760772562187,-2358.78523566,0.00024142,2]
[391748549,1760772562219,-5282.43952868,0.00024142,2]
[391748550,1760772568631,300.0,0.00024,2]
[391748551,1760772580315,150.0,0.00023,3]
[391748552,1760772580697,300.0,0.00024,2]
[391748553,1760772589622,231.761628,0.0002351,2]
[391748554,1760772607104,9018.248372,0.00023466,30]
[391748555,1760772607135,10000.01,0.00023466,30]
[391748556,1760772607167,10000.01,0.00023466,30]
[391748557,1760772607198,10000.01,0.00023466,30]
[391748558,1760772607230,10000.01,0.00023466,30]
[391748559,1760772607263,10000.01,0.00023466,30]
[391748560,1760772607295,3786.251539,0.00023466,30]
[391748561,1760772622157,150.0,0.00019787,2]
[391748589,1760772632113,-154.96770746,0.00024353,2]
[391748592,1760772632122,-300.0,0.00024446,2]
[391748593,1760772632132,-295.0,0.00024446,2]
[391748595,1760772632141,-613.0822753,0.00024446,2]
[391748632,1760772632736,-582.20383173,0.00024446,2]
[391748767,1760772638056,-4.71389297,0.00024446,2]
[391748769,1760772638066,-197.5484138,0.00024446,2]
[391748771,1760772638076,-500.0,0.00024446,2]
[391748773,1760772638086,-500.0,0.00024446,2]
[391748775,1760772638095,-500.0,0.00024446,2]
[391748777,1760772638105,-500.0,0.00024446,2]
[391748779,1760772638114,-500.0,0.00024446,2]
[391748780,1760772638124,-500.0,0.00024446,2]
[391748782,1760772638133,-500.0,0.00024446,2]
[391748784,1760772638142,-447.32103356,0.00024446,2]
[391748788,1760772638501,-52.67896644,0.00024446,2]
[391748789,1760772638511,-500.0,0.00024446,2]
[391748790,1760772638521,-500.0,0.00024446,2]
[391748791,1760772638530,-500.0,0.00024446,2]
[391748792,1760772638540,-500.0,0.00024446,2]
[391748793,1760772638550,-500.0,0.00024446,2]
[391748794,1760772638566,-500.0,0.00024446,2]
[391748795,1760772638575,-500.0,0.00024446,2]
[391748796,1760772638585,-500.0,0.00024446,2]
[391748797,1760772638595,-500.0,0.00024446,2]
[391748798,1760772638604,-500.0,0.00024446,2]
[391748799,1760772638614,-500.0,0.00024446,2]
[391748800,1760772638624,-500.0,0.00024446,2]
[391748801,1760772638634,-500.0,0.00024446,2]
[391748802,1760772638644,-500.0,0.00024446,2]
[391748803,1760772638655,-153.76929495,0.00024446,2]
[391748804,1760772638670,-346.23070505,0.00024446,2]
[391748805,1760772638682,-408.86507303,0.00024446,2]
[391748806,1760772638691,-500.0,0.00024446,2]
[391748807,1760772638701,-500.0,0.00024446,2]
[391748808,1760772638711,-500.0,0.00024446,2]
[391748809,1760772638721,-500.0,0.00024446,2]
[391748810,1760772638730,-500.0,0.00024446,2]
[391748811,1760772638739,-500.0,0.00024446,2]
[391748812,1760772638749,-500.0,0.00024446,2]
[391748813,1760772638758,-500.0,0.00024446,2]
[391748814,1760772638768,-500.0,0.00024446,2]
[391748815,1760772638777,-500.0,0.00024446,2]
[391748816,1760772638786,-500.0,0.00024446,2]
[391748817,1760772638795,-500.0,0.00024446,2]
[391748818,1760772638804,-500.0,0.00024446,2]
[391748819,1760772638814,-500.0,0.00024446,2]
[391748820,1760772638823,-500.0,0.00024446,2]
[391748821,1760772638833,-500.0,0.00024446,2]
[391748822,1760772638843,-500.0,0.00024446,2]
[391748823,1760772638853,-500.0,0.00024446,2]
[391748824,1760772638862,-500.0,0.00024446,2]
[391748825,1760772638872,-500.0,0.00024446,2]
[391748826,1760772638882,-500.0,0.00024446,2]
[391748827,1760772638891,-500.0,0.00024446,2]
[391748828,1760772638901,-500.0,0.00024446,2]
[391748829,1760772638910,-500.0,0.00024446,2]
[391748830,1760772638920,-500.0,0.00024446,2]
[391748831,1760772638933,-500.0,0.00024446,2]
[391748832,1760772638943,-500.0,0.00024446,2]
[391748833,1760772638953,-500.0,0.00024446,2]
[391748834,1760772638963,-500.0,0.00024446,2]
[391748835,1760772638973,-154.40675859,0.00024446,2]
[391748836,1760772638983,-500.0,0.00024446,2]
[391748837,1760772638992,-500.0,0.00024446,2]
[391748838,1760772639002,-500.0,0.00024446,2]
[391748839,1760772639012,-500.0,0.00024446,2]
[391748840,1760772639021,-500.0,0.00024446,2]
[391748841,1760772639031,-500.0,0.00024446,2]
[391748842,1760772639041,-500.0,0.00024446,2]
[391748843,1760772639051,-500.0,0.00024446,2]
[391748844,1760772639061,-500.0,0.00024446,2]
[391748845,1760772639072,-500.0,0.00024446,2]
[391748846,1760772639083,-500.0,0.00024446,2]
[391748847,1760772639093,-500.0,0.00024446,2]
[391748848,1760772639103,-500.0,0.00024446,2]
[391748849,1760772639113,-500.0,0.00024446,2]
[391748850,1760772639123,-500.0,0.00024446,2]
[391748851,1760772639132,-500.0,0.00024446,2]
[391748852,1760772639142,-500.0,0.00024446,2]
[391748853,1760772639152,-500.0,0.00024446,2]
[391748854,1760772639161,-500.0,0.00024446,2]
[391748855,1760772639170,-500.0,0.00024446,2]
[391748856,1760772639182,-189.58706741,0.00024446,2]
[391748857,1760772639191,-500.0,0.00024446,2]
[391748858,1760772639201,-500.0,0.00024446,2]
[391748859,1760772639210,-500.0,0.00024446,2]
[391748860,1760772639219,-500.0,0.00024446,2]
[391748861,1760772639229,-500.0,0.00024446,2]
[391748862,1760772639239,-521.7176812,0.00024446,2]
[391748863,1760772639248,-500.0,0.00024446,2]
[391748864,1760772639257,-500.0,0.00024446,2]
[391748865,1760772639266,-500.0,0.00024446,2]